lending/lending_fUSD_20240112
["ID","MTS","AMOUNT","RATE_DAILY","PERIOD"]
[311347448,1705065134128,-526.02,0.00028344,2]
[311347449,1705065134137,-500.0,0.00028344,2]
[311347450,1705065134147,-514.03,0.00028344,2]
[311347451,1705065134156,-1199.16,0.00028344,2]
[311347452,1705065134166,-809.87,0.00028344,2]
[311347453,1705065134176,-826.13,0.00028344,2]
[311347454,1705065134186,-629.29,0.00028344,2]
[311347455,1705065134195,-2053.17,0.00028344,2]
[311347456,1705065134206,-500.0,0.00028344,2]
[311347457,1705065134216,-713.26,0.00028344,2]
[311347458,1705065134226,-896.29,0.00028344,2]
[311347459,1705065134236,-1112.52,0.00028344,2]
[311347460,1705065134246,-1157.27,0.00028344,2]
[311347461,1705065134257,-597.76,0.00028344,2]
[311347462,1705065134266,-574.98,0.00028344,2]
[311347463,1705065134275,-1688.31,0.00028344,2]
[311347464,1705065134285,-974.33,0.00028344,2]
[311347465,1705065134295,-644.03,0.00028344,2]
[311347466,1705065134305,-791.75,0.00028344,2]
[311347467,1705065134317,-2017.32,0.00028344,2]
[311347468,1705065134327,-655.0,0.00028344,2]
[311347469,1705065134337,-535.6,0.00028344,2]
[311347470,1705065134347,-705.71,0.00028344,2]
[311347471,1705065134357,-1374.63,0.00028344,2]
[311347472,1705065134367,-1550.52,0.00028344,2]
[311347473,1705065134376,-1473.58,0.00028344,2]
[311347474,1705065134386,-805.25,0.00028344,2]
[311347475,1705065134396,-1112.34,0.00028344,2]
[311347476,1705065134406,-943.87,0.00028344,2]
[311347477,1705065134416,-565.25,0.00028344,2]
[311347478,1705065134427,-3783.76,0.00028344,2]
[311347479,1705065134436,-527.36,0.00028345,2]
[311347480,1705065134446,-511.53,0.00028345,2]
[311347481,1705065134457,-592.66,0.00028345,2]
[311347482,1705065134467,-553.32244827,0.00028345,2]
[311347483,1705065134477,-401.53211795,0.00028345,2]
[311347484,1705065134486,-557.22,0.00028345,2]
[311347485,1705065134496,-614.48109016,0.00028345,2]
[311347486,1705065134507,-500.0,0.00028345,2]
[311347487,1705065134516,-506.67,0.00028345,2]
[311347488,1705065134528,-555.88,0.00028345,2]
[311347489,1705065134539,-360.74142247,0.00028345,2]
[311347490,1705065134549,-710.1,0.00028345,2]
[311347491,1705065134559,-500.0,0.00028345,2]
[311347492,1705065134569,-471.23321707,0.00028345,2]
[311347493,1705065134578,-473.24828825,0.00028345,2]
[311347494,1705065134588,-1022.92,0.00028345,2]
[311347495,1705065134599,-1065.11,0.00028345,2]
[311347496,1705065134608,-973.85,0.00028345,2]
[311347497,1705065134618,-596.64,0.00028345,2]
[311347498,1705065134628,-1316.49,0.00028345,2]
[311347499,1705065134638,-565.15,0.00028345,2]
[311347500,1705065134648,-4908.84,0.00028345,2]
[311347501,1705065134658,-567.77,0.00028345,2]
[311347502,1705065134668,-1555.67,0.00028345,2]
[311347503,1705065134677,-1400.6,0.00028345,5]
[311347504,1705065134687,-1433.76,0.00028345,2]
[311347505,1705065134697,-1359.51,0.00028345,2]
[311347506,1705065134708,-647.67,0.00028345,2]
[311347507,1705065134717,-756.74,0.00028345,2]
[311347508,1705065134727,-1876.2,0.00028345,2]
[311347509,1705065134737,-1824.82,0.00028345,2]
[311347510,1705065134746,-1309.3,0.00028345,2]
[311347511,1705065134758,-937.63,0.00028345,2]
[311347512,1705065134767,-2066.36,0.00028345,2]
[311347513,1705065134777,-3090.41,0.00028345,2]
[311347514,1705065134787,-660.9,0.00028345,2]
[311347515,1705065134796,-500.0,0.00028345,2]
[311347516,1705065134806,-1935.88,0.00028345,2]
[311347517,1705065134815,-505.19,0.00028345,2]
[311347518,1705065134825,-527.44,0.00028345,2]
[311347519,1705065134836,-500.0,0.00028345,2]
[311347520,1705065134849,-1258.22,0.00028345,2]
[311347521,1705065134859,-500.0,0.00028345,2]
[311347522,1705065134870,-500.0,0.00028345,2]
[311347523,1705065134879,-620.89,0.00028345,2]
[311347524,1705065134890,-993.03,0.00028345,2]
[311347525,1705065134899,-724.59,0.00028345,2]
[311347526,1705065134909,-434.34,0.00028347,2]
[311347527,1705065134919,-500.0,0.00028405,2]
[311347528,1705065134929,-500.0,0.00028405,2]
[311347529,1705065134940,-500.0,0.00028405,2]
[311347530,1705065134949,-500.0,0.00028405,2]
[311347531,1705065134959,-500.0,0.00028405,2]
[311347532,1705065134969,-500.0,0.00028405,2]
[311347533,1705065134980,-500.0,0.00028405,2]
[311347534,1705065134990,-500.0,0.00028405,2]
[311347535,1705065135001,-500.0,0.00028405,2]
[311347536,1705065135011,-500.0,0.00028405,2]
[311347537,1705065135021,-500.0,0.00028405,2]
[311347538,1705065135031,-500.0,0.00028405,2]
[311347539,1705065135042,-500.0,0.00028405,2]
[311347540,1705065135052,-500.0,0.00028405,2]
[311347541,1705065135062,-500.0,0.00028405,2]
[311347542,1705065135071,-500.0,0.00028405,2]
[311347543,1705065135081,-500.0,0.00028405,2]
[311347544,1705065135092,-500.0,0.00028405,2]
[311347545,1705065135103,-500.0,0.00028405,2]
[311347546,1705065135113,-500.0,0.00028405,2]
[311347547,1705065135124,-500.0,0.00028405,2]
[311347548,1705065135134,-500.0,0.00028405,2]
[311347549,1705065135143,-500.0,0.00028405,2]
[311347550,1705065135155,-500.0,0.00028405,2]
[311347551,1705065135166,-500.0,0.00028405,2]
[311347552,1705065135175,-500.0,0.00028405,2]
[311347553,1705065135185,-500.0,0.00028405,2]
[311347554,1705065135195,-500.0,0.00028405,2]
[311347555,1705065135206,-500.0,0.00028405,2]
[311347556,1705065135216,-500.0,0.00028405,2]
[311347557,1705065135226,-500.0,0.00028405,2]
[311347558,1705065135236,-500.0,0.00028405,2]
[311347559,1705065135246,-500.0,0.00028405,2]
[311347560,1705065135257,-500.0,0.00028405,2]
[311347561,1705065135267,-500.0,0.00028405,2]
[311347562,1705065135276,-500.0,0.00028405,2]
[311347563,1705065135286,-500.0,0.00028405,2]
[311347564,1705065135295,-500.0,0.00028405,2]
[311347565,1705065135305,-500.0,0.00028405,2]
[311347566,1705065135315,-500.0,0.00028405,2]
[311347567,1705065135325,-500.0,0.00028405,2]
[311347568,1705065135334,-500.0,0.00028405,2]
[311347569,1705065135344,-500.0,0.00028405,2]
[311347570,1705065135354,-500.0,0.00028405,2]
[311347571,1705065135364,-500.0,0.00028405,2]
[311347572,1705065135374,-500.0,0.00028405,2]
[311347573,1705065135383,-500.0,0.00028405,2]
[311347574,1705065135393,-500.0,0.00028405,2]
[311347575,1705065135403,-500.0,0.00028405,2]
[311347576,1705065135413,-500.0,0.00028405,2]
[311347577,1705065135423,-500.0,0.00028405,2]
[311347578,1705065135432,-500.0,0.00028405,2]
[311347579,1705065135442,-500.0,0.00028405,2]
[311347580,1705065135451,-500.0,0.00028405,2]
[311347581,1705065135461,-500.0,0.00028405,2]
[311347582,1705065135470,-500.0,0.00028405,2]
[311347583,1705065135480,-500.0,0.00028405,2]
[311347584,1705065135489,-500.0,0.00028405,2]
[311347585,1705065135500,-500.0,0.00028405,2]
[311347586,1705065135513,-500.0,0.00028405,2]
[311347587,1705065135525,-500.0,0.00028405,2]
[311347588,1705065135536,-500.0,0.00028405,2]
[311347589,1705065135546,-500.0,0.00028405,2]
[311347590,1705065135558,-500.0,0.00028405,2]
[311347591,1705065135570,-500.0,0.00028405,2]
[311347592,1705065135581,-500.0,0.00028405,2]
[311347593,1705065135591,-500.0,0.00028405,2]
[311347594,1705065135601,-500.0,0.00028405,2]
[311347595,1705065135612,-500.0,0.00028405,2]
[311347596,1705065135622,-500.0,0.00028405,2]
[311347597,1705065135634,-500.0,0.00028405,2]
[311347598,1705065135644,-500.0,0.00028405,2]
[311347599,1705065135655,-500.0,0.00028405,2]
[311347600,1705065135665,-500.0,0.00028405,2]
[311347601,1705065135676,-500.0,0.00028405,2]
[311347602,1705065135686,-500.0,0.00028405,2]
[311347603,1705065135697,-500.0,0.00028405,2]
[311347604,1705065135707,-500.0,0.00028405,2]
[311347605,1705065135717,-500.0,0.00028405,2]
[311347606,1705065135727,-500.0,0.00028405,2]
[311347607,1705065135738,-500.0,0.00028405,2]
[311347608,1705065135749,-500.0,0.00028405,2]
[311347609,1705065135765,-500.0,0.00028405,2]
[311347610,1705065135939,-500.0,0.00028405,2]
[311347611,1705065135949,-500.0,0.00028405,2]
[311347612,1705065135959,-500.0,0.00028405,2]
[311347613,1705065135968,-500.0,0.00028405,2]
[311347614,1705065135978,-500.0,0.00028405,2]
[311347615,1705065135987,-500.0,0.00028405,2]
[311347616,1705065135996,-500.0,0.00028405,2]
[311347617,1705065136009,-500.0,0.00028473,2]
[311347618,1705065136018,-434.34,0.00028505,2]
[311347619,1705065136028,-460.54,0.00028515,2]
[311347620,1705065136038,-500.0,0.00028615,2]
[311347621,1705065136047,-500.0,0.00028615,2]
[311347622,1705065136057,-500.0,0.00028615,2]
[311347623,1705065136067,-500.0,0.00028615,2]
[311347624,1705065136077,-500.0,0.00028615,2]
[311347625,1705065136086,-500.0,0.00028615,2]
[311347626,1705065136095,-500.0,0.00028615,2]
[311347627,1705065136104,-500.0,0.00028615,2]
[311347628,1705065136114,-500.0,0.00028615,2]
[311347629,1705065136123,-500.0,0.00028615,2]
[311347630,1705065136133,-500.0,0.00028615,2]
[311347631,1705065136142,-500.0,0.00028615,2]
[311347632,1705065136151,-500.0,0.00028615,2]
[311347633,1705065136161,-500.0,0.00028615,2]
[311347634,1705065136171,-500.0,0.00028615,2]
[311347635,1705065136180,-500.0,0.00028615,2]
[311347636,1705065136189,-1095.03,0.00028615,2]
[311347637,1705065136198,-2336.53,0.00028615,5]
[311347638,1705065136209,-660.44,0.00028615,2]
[311347639,1705065136219,-4983.08,0.00028615,2]
[311347640,1705065136229,-6835.31,0.00028615,2]
[311347641,1705065136239,-1968.89,0.00028615,2]
[311347642,1705065136249,-14321.2,0.00028615,2]
[311347643,1705065136261,-549.3,0.00028615,2]
[311347644,1705065136273,-619.15,0.00028615,2]
[311347645,1705065136283,-1403.82,0.00028615,2]
[311347646,1705065136292,-722.98,0.00028615,2]
[311347647,1705065136302,-607.61,0.00028615,2]
[311347648,1705065136312,-510.07,0.00028615,2]
[311347649,1705065136323,-749.86,0.00028615,2]
[311347650,1705065136333,-3048.94,0.00028615,2]
[311347651,1705065136343,-500.0,0.00028615,2]
[311347652,1705065136352,-1294.29,0.00028615,2]
[311347653,1705065136363,-984.37,0.00028615,2]
[311347654,1705065136372,-675.45,0.00028615,2]
[311347655,1705065136382,-1709.12,0.00028615,2]
[311347656,1705065136391,-937.07,0.00028615,2]
[311347657,1705065136400,-2370.13,0.00028615,2]
[311347658,1705065136409,-793.03,0.00028615,2]
[311347659,1705065136418,-786.71,0.00028615,2]
[311347660,1705065136428,-1074.66,0.00028615,2]
[311347661,1705065136437,-2000.06,0.00028615,2]
[311347662,1705065136446,-3928.94,0.00028615,2]
[311347663,1705065136455,-1033.75,0.00028615,2]
[311347664,1705065136465,-874.55,0.00028615,2]
[311347665,1705065136474,-1304.48,0.00028615,2]
[311347666,1705065136484,-6963.0,0.00028615,2]
[311347667,1705065136493,-1048.12,0.00028615,2]
[311347668,1705065136504,-1205.23,0.00028615,2]
[311347669,1705065136513,-736.05,0.00028615,2]
[311347670,1705065136524,-9796.43,0.00028615,2]
[311347671,1705065136534,-2056.42,0.00028615,2]
[311347672,1705065136544,-600.05,0.00028615,2]
[311347673,1705065136553,-1076.15,0.00028615,2]
[311347674,1705065136563,-314.16089402,0.00028615,2]
[311347675,1705065136574,-1891.13,0.00028615,2]
[311347676,1705065136583,-2556.24,0.00028615,2]
[311347677,1705065136592,-750.14,0.00028615,2]
[311347678,1705065136603,-2721.6,0.00028615,2]
[311347679,1705065136613,-884.19,0.00028615,2]
[311347680,1705065136623,-2018.21,0.00028615,2]
[311347681,1705065136634,-2134.94,0.00028615,2]
[311347682,1705065136643,-1493.07,0.00028615,2]
[311347683,1705065136652,-1084.3,0.00028615,2]
[311347684,1705065136662,-612.02,0.00028615,2]
[311347685,1705065136672,-5673.19,0.00028615,2]
[311347686,1705065136682,-1028.9,0.00028615,2]
[311347687,1705065136693,-2233.34,0.00028615,2]
[311347688,1705065136702,-710.28,0.00028615,2]
[311347689,1705065136711,-1431.33,0.00028618,2]
[311347690,1705065136720,-526.28,0.00028618,2]
[311347691,1705065136728,-500.0,0.00028618,2]
[311347692,1705065136737,-543.44,0.00028618,2]
[311347693,1705065136746,-546.37015441,0.00028618,2]
[311347694,1705065136757,-553.95,0.00028618,2]
[311347695,1705065136767,-516.33,0.00028618,2]
[311347696,1705065136776,-586.6,0.00028618,2]
[311347697,1705065136786,-515.42,0.00028618,2]
[311347698,1705065136795,-592.8,0.00028618,2]
[311347699,1705065136805,-572.59,0.00028618,2]
[311347700,1705065136814,-535.83,0.00028618,2]
[311347701,1705065136824,-611.41,0.00028618,2]
[311347702,1705065136834,-1479.42,0.00028618,2]
[311347703,1705065136844,-1130.95,0.00028618,2]
[311347704,1705065136858,-917.05,0.00028618,2]
[311347705,1705065136867,-3574.26,0.00028618,2]
[311347706,1705065136876,-526.02,0.00028618,2]
[311347707,1705065136887,-500.0,0.00028618,2]
[311347708,1705065136897,-514.03,0.00028618,2]
[311347709,1705065136906,-1199.16,0.00028618,2]
[311347710,1705065136917,-809.87,0.00028618,2]
[311347711,1705065136926,-826.13,0.00028618,2]
[311347712,1705065136936,-629.29,0.00028618,2]
[311347713,1705065136945,-2053.17,0.00028618,2]
[311347714,1705065136955,-500.0,0.00028618,2]
[311347715,1705065136964,-713.26,0.00028618,2]
[311347716,1705065136973,-896.29,0.00028618,2]
[311347717,1705065136983,-1112.52,0.00028618,2]
[311347718,1705065136992,-1157.27,0.00028618,2]
[311347719,1705065137003,-597.76,0.00028618,2]
[311347720,1705065137012,-574.98,0.00028618,2]
[311347721,1705065137021,-1688.31,0.00028618,2]
[311347722,1705065137030,-974.33,0.00028618,2]
[311347723,1705065137040,-644.03,0.00028618,2]
[311347724,1705065137049,-791.75,0.00028618,2]
[311347725,1705065137058,-2017.32,0.00028618,2]
[311347726,1705065137068,-655.0,0.00028618,2]
[311347727,1705065137077,-535.6,0.00028618,2]
[311347728,1705065137087,-705.71,0.00028618,2]
[311347729,1705065137097,-1374.63,0.00028618,2]
[311347730,1705065137106,-1550.52,0.00028618,2]
[311347731,1705065137116,-1473.58,0.00028618,2]
[311347732,1705065137126,-805.25,0.00028618,2]
[311347733,1705065137136,-1112.34,0.00028618,2]
[311347734,1705065137146,-943.87,0.00028618,2]
[311347735,1705065137155,-565.25,0.00028618,2]
[311347736,1705065137165,-3783.76,0.00028618,2]
[311347737,1705065137174,-527.36,0.00028619,2]
[311347738,1705065137183,-511.53,0.00028619,2]
[311347739,1705065137193,-592.66,0.00028619,2]
[311347740,1705065137202,-557.22,0.00028619,2]
[311347741,1705065137211,-502.16967885,0.00028619,2]
[311347742,1705065137220,-506.67,0.00028619,2]
[311347743,1705065137230,-555.88,0.00028619,2]
[311347744,1705065137239,-710.1,0.00028619,2]
[311347745,1705065137249,-516.74721716,0.00028619,2]
[311347746,1705065137259,-1022.92,0.00028619,2]
[311347747,1705065137269,-1065.11,0.00028619,2]
[311347748,1705065137279,-973.85,0.00028619,2]
[311347749,1705065137288,-596.64,0.00028619,2]
[311347750,1705065137301,-1316.49,0.00028619,2]
[311347751,1705065137311,-565.15,0.00028619,2]
[311347752,1705065137321,-4908.84,0.00028619,2]
[311347753,1705065137330,-567.77,0.00028619,2]
[311347754,1705065137341,-1555.67,0.00028619,2]
[311347755,1705065137350,-1400.6,0.00028619,5]
[311347756,1705065137359,-1433.76,0.00028619,2]
[311347757,1705065137369,-1359.51,0.00028619,2]
[311347758,1705065137378,-647.67,0.00028619,2]
[311347759,1705065137387,-756.74,0.00028619,2]
[311347760,1705065137397,-1876.2,0.00028619,2]
[311347761,1705065137405,-1824.82,0.00028619,2]
[311347762,1705065137415,-1309.3,0.00028619,2]
[311347763,1705065137424,-937.63,0.00028619,2]
[311347764,1705065137434,-2066.36,0.00028619,2]
[311347765,1705065137443,-3090.41,0.00028619,2]
[311347766,1705065137453,-660.9,0.00028619,2]
[311347767,1705065137462,-396.00081939,0.00028619,2]
[311347768,1705065137471,-1935.88,0.00028619,2]
[311347769,1705065137481,-505.19,0.00028619,2]
[311347770,1705065137492,-527.44,0.00028619,2]
[311347771,1705065137501,-500.0,0.00028619,2]
[311347772,1705065137510,-1258.22,0.00028619,2]
[311347773,1705065137519,-251.85622641,0.00028619,2]
[311347774,1705065137529,-495.34394715,0.00028619,2]
[311347775,1705065137539,-620.89,0.00028619,2]
[311347776,1705065137548,-993.03,0.00028619,2]
[311347777,1705065137558,-724.59,0.00028619,2]
[311347778,1705065137568,-434.34,0.00028664,2]
[311347779,1705065137578,-200.0,0.00028688,2]
[311347780,1705065137587,-945.0,0.00028712,2]
[311347781,1705065137596,-835.0,0.00028712,2]
[311347782,1705065137605,-1851.0,0.00028712,2]
[311347783,1705065137615,-1252.0,0.00028712,2]
[311347784,1705065137624,-1234.0,0.00028712,2]
[311347785,1705065137633,-1138.0,0.00028712,2]
[311347786,1705065137643,-879.0,0.00028712,2]
[311347787,1705065137653,-318.0,0.00028712,2]
[311347788,1705065137662,-2270.0,0.00028718,2]
[311347789,1705065137672,-19678.0,0.00028718,2]
[311347790,1705065137682,-2901.0,0.00028718,2]
[311347791,1705065137691,-1028.0,0.00028718,2]
[311347792,1705065137701,-155.0,0.00028767,2]
[311347793,1705065137711,-5533.6018685,0.00028818,2]
[311347794,1705065137721,-434.34,0.00028822,2]
[311347795,1705065137731,-331.36,0.00028841,2]
[311347796,1705065137741,-500.0,0.00028871,2]
[311347797,1705065137750,-150.0,0.00028888,2]
[311347798,1705065137790,-1095.23908112,0.00028889,2]
[311347799,1705065137799,-2336.68962865,0.00028889,5]
[311347800,1705065137809,-660.59697746,0.00028889,2]
[311347801,1705065137818,-4983.1755,0.00028889,2]
[311347802,1705065137828,-6835.4569029,0.00028889,2]
[311347803,1705065137838,-1969.02374583,0.00028889,2]
[311347804,1705065137849,-14321.236,0.00028889,2]
[311347805,1705065137861,-549.33470633,0.00028889,2]
[311347806,1705065137871,-619.33303908,0.00028889,2]
[311347807,1705065137880,-1403.92684019,0.00028889,2]
[311347808,1705065137890,-723.14413641,0.00028889,2]
[311347809,1705065137900,-607.62182773,0.00028889,2]
[311347810,1705065137910,-510.19915027,0.00028889,2]
[311347811,1705065137920,-749.96533,0.00028889,2]
[311347812,1705065137931,-3049.02628779,0.00028889,2]
[311347813,1705065137941,-271.43,0.00028889,2]
[311347814,1705065137951,-1294.35827169,0.00028889,2]
[311347815,1705065137961,-984.48407283,0.00028889,2]
[311347816,1705065137971,-675.51,0.00028889,2]
[311347817,1705065137980,-1709.33518354,0.00028889,2]
[311347818,1705065137991,-937.27454158,0.00028889,2]
[311347819,1705065138001,-2370.2617787,0.00028889,2]
[311347820,1705065138014,-793.08228367,0.00028889,2]
[311347821,1705065138023,-786.80528586,0.00028889,2]
[311347822,1705065138033,-1074.69644578,0.00028889,2]
[311347823,1705065138043,-2000.08828401,0.00028889,2]
[311347824,1705065138053,-3928.97,0.00028889,2]
[311347825,1705065138062,-1033.82310818,0.00028889,2]
[311347826,1705065138072,-874.71019524,0.00028889,2]
[311347827,1705065138081,-1304.67392319,0.00028889,2]
[311347828,1705065138090,-6963.09,0.00028889,2]
[311347829,1705065138099,-1048.33882062,0.00028889,2]
[311347830,1705065138108,-1205.38152904,0.00028889,2]
[311347831,1705065138118,-736.19,0.00028889,2]
[311347832,1705065138127,-9796.4611234,0.00028889,2]
[311347833,1705065138136,-2056.59155851,0.00028889,2]
[311347834,1705065138145,-600.23707882,0.00028889,2]
[311347835,1705065138155,-1076.34306505,0.00028889,2]
[311347836,1705065138165,-1891.24851944,0.00028889,2]
[311347837,1705065138174,-2556.3691815,0.00028889,2]
[311347838,1705065138183,-750.16733375,0.00028889,2]
[311347839,1705065138192,-2721.71752351,0.00028889,2]
[311347840,1705065138201,-884.32562512,0.00028889,2]
[311347841,1705065138210,-2018.29061515,0.00028889,2]
[311347842,1705065138220,-2135.02318317,0.00028889,2]
[311347843,1705065138229,-1493.17533665,0.00028889,2]
[311347844,1705065138239,-1084.32763076,0.00028889,2]
[311347845,1705065138248,-612.22588015,0.00028889,2]
[311347846,1705065138260,-5673.32355173,0.00028889,2]
[311347847,1705065138269,-1028.95543488,0.00028889,2]
[311347848,1705065138279,-2233.51809464,0.00028889,2]
[311347849,1705065138288,-1431.55181196,0.00028892,2]
[311347850,1705065138298,-526.39718851,0.00028892,2]
[311347851,1705065138307,-314.84678753,0.00028892,2]
[311347852,1705065138316,-543.46585209,0.00028892,2]
[311347853,1705065138325,-553.96030708,0.00028892,2]
[311347854,1705065138334,-516.51906832,0.00028892,2]
[311347855,1705065138343,-586.68192399,0.00028892,2]
[311347856,1705065138353,-515.57,0.00028892,2]
[311347857,1705065138362,-592.87941504,0.00028892,2]
[311347858,1705065138371,-572.65970482,0.00028892,2]
[311347859,1705065138380,-536.06225616,0.00028892,2]
[311347860,1705065138390,-611.46272369,0.00028892,2]
[311347861,1705065138399,-1479.55690932,0.00028892,2]
[311347862,1705065138408,-1131.03462871,0.00028892,2]
[311347863,1705065138418,-917.08846828,0.00028892,2]
[311347864,1705065138427,-3574.33008736,0.00028892,2]
[311347865,1705065138436,-526.14190111,0.00028892,2]
[311347866,1705065138446,-306.366576,0.00028892,2]
[311347867,1705065138603,-514.24433481,0.00028892,2]
[311347868,1705065138613,-1199.39887234,0.00028892,2]
[311347869,1705065138622,-809.97650252,0.00028892,2]
[311347870,1705065138631,-826.31176051,0.00028892,2]
[311347871,1705065138640,-629.40872343,0.00028892,2]
[311347872,1705065138649,-2053.30775602,0.00028892,2]
[311347873,1705065138659,-286.06234175,0.00028892,2]
[311347874,1705065138668,-713.44,0.00028892,2]
[311347875,1705065138677,-896.31211607,0.00028892,2]
[311347876,1705065138686,-1112.66239398,0.00028892,2]
[311347877,1705065138695,-1157.42125785,0.00028892,2]
[311347878,1705065138705,-597.92407343,0.00028892,2]
[311347879,1705065138714,-575.06882946,0.00028892,2]
[311347880,1705065138723,-1688.40285074,0.00028892,2]
[311347881,1705065138732,-974.53614711,0.00028892,2]
[311347882,1705065138741,-644.14506648,0.00028892,2]
[311347883,1705065138751,-791.76995084,0.00028892,2]
[311347884,1705065138762,-2017.38071879,0.00028892,2]
[311347885,1705065138771,-655.10936577,0.00028892,2]
[311347886,1705065138781,-535.77639648,0.00028892,2]
[311347887,1705065138790,-705.81475882,0.00028892,2]
[311347888,1705065138799,-1374.77186701,0.00028892,2]
[311347889,1705065138809,-1550.6074522,0.00028892,2]
[311347890,1705065138818,-1473.657561,0.00028892,2]
[311347891,1705065138828,-805.39541756,0.00028892,2]
[311347892,1705065138839,-1112.3575494,0.00028892,2]
[311347893,1705065138850,-943.89904266,0.00028892,2]
[311347894,1705065138859,-565.38622254,0.00028892,2]
[311347895,1705065138868,-3783.94145293,0.00028892,2]
[311347896,1705065138877,-527.58,0.00028893,2]
[311347897,1705065138887,-511.73186554,0.00028893,2]
[311347898,1705065138897,-592.78822077,0.00028893,2]
[311347899,1705065138906,-557.34408576,0.00028893,2]
[311347900,1705065138915,-506.77,0.00028893,2]
[311347901,1705065138925,-556.09897278,0.00028893,2]
[311347902,1705065138934,-710.17490154,0.00028893,2]
[311347903,1705065138943,-1023.12,0.00028893,2]
[311347904,1705065138952,-1065.28146447,0.00028893,2]
[311347905,1705065138961,-974.06016606,0.00028893,2]
[311347906,1705065138970,-596.85789673,0.00028893,2]
[311347907,1705065138979,-1316.58692993,0.00028893,2]
[311347908,1705065138988,-565.22017711,0.00028893,2]
[311347909,1705065138998,-4908.93131854,0.00028893,2]
[311347910,1705065139008,-567.92021094,0.00028893,2]
[311347911,1705065139017,-1555.84123842,0.00028893,2]
[311347912,1705065139026,-1400.67429076,0.00028893,5]
[311347913,1705065139035,-1433.80655406,0.00028893,2]
[311347914,1705065139044,-1359.55826026,0.00028893,2]
[311347915,1705065139053,-647.88195691,0.00028893,2]
[311347916,1705065139062,-756.82,0.00028893,2]
[311347917,1705065139071,-1876.29902609,0.00028893,2]
[311347918,1705065139080,-1824.90950464,0.00028893,2]
[311347919,1705065139089,-1309.30189186,0.00028893,2]
[311347920,1705065139099,-937.70160258,0.00028893,2]
[311347921,1705065139108,-2066.55759779,0.00028893,2]
[311347922,1705065139117,-3090.53131652,0.00028893,2]
[311347923,1705065139127,-661.00333235,0.00028893,2]
[311347924,1705065139136,-1936.01209276,0.00028893,2]
[311347925,1705065139145,-505.23869001,0.00028893,2]
[311347926,1705065139155,-527.52604507,0.00028893,2]
[311347927,1705065139164,-364.63635567,0.00028893,2]
[311347928,1705065139174,-1258.42039121,0.00028893,2]
[311347929,1705065139183,-620.98666738,0.00028893,2]
[311347930,1705065139193,-993.2640329,0.00028893,2]
[311347931,1705065139203,-724.69819253,0.00028893,2]
[311347932,1705065139214,-500.0,0.00028902,2]
[311347933,1705065139224,-970.13753786,0.00029,3]
[311347934,1705065139233,-650.0,0.00029,3]
[311347935,1705065139242,-150.0,0.00029238,2]
[311347936,1705065139252,-500.0,0.00029269,2]
[311347937,1705065139262,-150.0,0.00029274,2]
[311347938,1705065139272,-150.0,0.00029279,2]
[311347939,1705065139281,-150.0,0.00029327,2]
[311347940,1705065139290,-150.0,0.00029351,2]
[311347941,1705065139300,-150.0,0.00029354,2]
[311347942,1705065139309,-150.0,0.00029359,2]
[311347943,1705065139318,-150.0,0.00029372,2]
[311347944,1705065139327,-272.58454234,0.00029399,2]
[311347945,1705065139337,-1428.0,0.000294,2]
[311347946,1705065139346,-24935.69244405,0.000294,2]
[311347947,1705065139355,-24935.69244405,0.000294,2]